bitfinex/quotes_ETHUSD_20220308
["timestamp","ask_amount","ask_price","bid_price","bid_amount"]
[1646698859418,6.0252,2511.3,2510.3,0.99614]
[1646698859617,2.10124787,2511.3,2510.5,1.1871876]
[1646698859817,1.10124787,2511.3,2510.5,0.17953983]
[1646698860225,1.10124787,2511.3,2510.3,0.99614]
[1646698860226,0.9962,2511.1,2510.2,0.00368079]
[1646698860623,0.9962,2511.1,2510.0,0.3]
[1646698860823,0.9962,2511.1,2509.9,0.4014]
[1646698860824,0.9962,2511.1,2510.8,0.00367999]
[1646698861525,1.0,2511.3,2510.8,0.00367999]
[1646698861723,1.0,2511.3,2510.2,1.10230663]
[1646698861724,1.00072858,2511.4,2510.3,0.4014]
[1646698861925,0.00072858,2511.4,2510.3,0.4014]
[1646698862124,0.00072858,2511.4,2510.8,0.00377839]
[1646698862327,0.94301064,2511.1,2510.8,0.00377839]
[1646698862679,1.93923064,2511.1,2510.8,0.00377839]
[1646698862971,1.93923064,2511.1,2510.2,1.99233]
[1646698863367,1.93923064,2511.1,2510.8,0.00377839]
[1646698863568,0.99619,2511.1,2510.8,0.00377839]
[1646698864269,0.99619,2511.1,2510.5,0.93503019]
[1646698864470,0.99619,2511.1,2510.8,0.00377839]
[1646698864771,0.6572115,2511.0,2510.8,0.00377839]
[1646698865376,0.6572115,2511.0,2509.6,0.21145998]
[1646698865579,0.99619,2511.1,2509.7,0.6005]
[1646698865776,0.99619,2511.1,2510.8,0.00342015]
[1646698866179,0.65934421,2511.0,2510.8,0.00342015]
[1646698866419,1.2125,2511.3,2510.8,0.00342015]
[1646698866616,4.79912858,2511.4,2510.7,0.9961]
[1646698866617,0.65909553,2511.2,2510.7,0.9961]
[1646698866819,0.65909553,2511.1,2510.4,1.60408816]
[1646698867118,0.65909553,2511.1,2510.0,4.6991]
[1646698867119,0.65909553,2511.0,2510.8,0.00342008]
[1646698867919,0.65909553,2511.0,2510.0,0.99639]
[1646698868123,1.03743002,2510.9,2510.8,0.00342015]
[1646698868320,1.69652555,2510.9,2510.8,0.00342015]
[1646698869019,1.69682287,2510.9,2509.9,3.5]
[1646698869221,0.65939285,2510.8,2510.7,0.00347262]
[1646698869422,0.1676,2511.1,2510.7,0.00347262]
[1646698869624,5.65062858,2511.4,2510.7,0.00347262]
[1646698869822,0.65962815,2511.3,2510.7,0.00347262]
[1646698870274,0.00072858,2511.4,2510.8,1.3973232]
[1646698870478,0.00072858,2511.4,2511.0,0.99588]
[1646698871079,0.00072858,2511.4,2510.9,0.00347234]
[1646698871475,0.00072858,2511.4,2510.3,3.8]
[1646698871775,0.00072858,2511.4,2511.1,0.00347214]
[1646698872176,0.00072858,2511.4,2510.7,0.83736321]
[1646698872374,0.66035673,2511.4,2510.9,0.99603]
[1646698872575,0.65962815,2511.3,2510.9,0.99603]
[1646698872776,0.65962815,2511.2,2510.9,0.99603]
[1646698872975,0.00072858,2511.4,2510.9,0.99603]
[1646698873776,0.99676858,2511.4,2510.9,0.99603]
[1646698874014,0.65986422,2511.3,2510.9,0.99603]
[1646698876121,0.65986422,2511.2,2511.0,3.5]
[1646698876423,0.00072858,2511.4,2511.1,0.99577]
[1646698876622,0.00072858,2511.4,2511.2,3.5]
[1646698876821,0.00072858,2511.4,2511.2,5.49141]
[1646698877022,0.00072858,2511.4,2511.3,4.58652754]
[1646698877221,0.66059041,2511.8,2511.7,0.4014]
[1646698877424,1.12166488,2512.7,2511.7,0.4014]
[1646698877425,0.69849641,2512.6,2512.0,0.4014]
[1646698877689,0.01532942,2512.2,2512.1,3.5]
[1646698877879,0.01532942,2512.2,2512.1,5.4905]
[1646698878078,0.01532942,2512.2,2512.1,7.1871707]
[1646698878282,3.69849641,2512.8,2512.1,7.1871707]
[1646698878283,3.0,2512.8,2512.2,5.9014]
[1646698878479,3.0,2512.8,2512.4,0.4014]
[1646698878780,3.0,2512.8,2512.5,0.4014]
[1646698878987,0.86609641,2513.2,2512.6,3.9014]
[1646698879194,0.3983,2513.4,2512.6,5.196527]
[1646698879195,0.69849641,2513.4,2512.6,5.196527]
[1646698879382,0.70939006,2513.6,2512.8,0.99501]
[1646698879581,0.70939006,2513.6,2512.9,4.3924]
[1646698879781,0.70939006,2513.6,2513.0,0.4014]
[1646698879782,0.01089365,2513.6,2513.0,0.4014]
[1646698879979,0.01089365,2513.6,2512.9,15.1450406]
[1646698879980,0.01089365,2513.6,2513.2,0.4014]
[1646698880180,0.01089365,2513.6,2513.2,1.98943]
[1646698880387,0.1675,2514.3,2513.2,1.98943]
[1646698880388,0.69849641,2513.7,2513.2,1.98943]
[1646698880583,1.62978312,2513.8,2513.2,1.98943]
[1646698880790,0.69849641,2513.7,2513.2,1.98943]
[1646698880982,0.69849641,2513.7,2513.2,3.04521918]
[1646698881185,0.01089365,2513.8,2513.2,3.04521918]
[1646698881417,0.01089365,2513.8,2513.4,0.99495]
[1646698881631,0.00519696,2513.6,2513.4,0.99495]
[1646698882016,0.00519696,2513.6,2513.4,1.39635]
[1646698882220,0.00519696,2513.6,2513.5,3.9014]
[1646698882420,0.01089365,2513.8,2513.5,16.0914]
[1646698882617,0.00519696,2513.6,2513.5,20.7812]
[1646698883015,0.06114278,2514.0,2513.9,0.4014]
[1646698883217,0.06114278,2514.0,2513.9,7.18499]
[1646698883422,0.06114278,2514.0,2513.9,8.13999551]
[1646698883618,0.04035807,2514.0,2513.9,7.83999551]
[1646698884217,0.04035807,2514.0,2513.9,4.33999551]
[1646698884419,0.04035807,2514.0,2513.9,7.83999551]
[1646698884617,0.04035807,2514.0,2513.9,4.33999551]
[1646698884821,0.04035807,2514.0,2513.9,3.93859551]
[1646698885023,0.04035807,2514.0,2513.8,0.99442]
[1646698885275,0.04035807,2514.0,2513.8,0.99484]
[1646698885875,0.04035807,2514.0,2513.6,1.98969]
[1646698886080,0.04035807,2514.0,2513.0,0.1988]
[1646698886081,1.04239031,2513.5,2513.0,0.1988]
[1646698886477,1.04239031,2513.5,2513.0,1.19398]
[1646698886876,0.3,2513.7,2513.0,1.19398]
[1646698887079,0.73885448,2514.0,2513.0,1.19398]
[1646698887477,0.04035807,2514.0,2513.0,1.19398]
[1646698887776,0.04035807,2514.0,2513.1,0.9950104]
[1646698887777,0.00520685,2513.7,2513.1,0.9950104]
[1646698887977,0.00520685,2513.7,2513.2,0.99493]
[1646698888377,0.04035807,2514.0,2513.4,1.08913821]
[1646698888582,0.0039293,2513.7,2513.4,1.08913821]
[1646698889219,0.0039293,2513.7,2513.5,1.39631]
[1646698889420,2.93e-05,2513.7,2513.6,3.9014]
[1646698889624,0.04035807,2514.0,2513.6,16.3914]
[1646698889821,0.04035807,2514.0,2513.9,0.4014]
[1646698890019,0.04035807,2514.0,2513.8,0.99740799]
[1646698890223,0.04035807,2514.0,2513.8,3.98035799]
[1646698890827,0.86609641,2514.7,2513.8,7.48035799]
[1646698891026,2.38908368,2514.8,2514.0,2.39034]
[1646698891027,0.3983,2514.8,2514.0,2.39034]
[1646698891226,0.3983,2514.8,2514.1,1.39587]
[1646698891227,0.01571609,2514.4,2514.1,1.39587]
[1646698891429,0.01571609,2514.4,2514.1,0.99447]
[1646698891827,0.01571609,2514.4,2514.1,0.987991]
[1646698892024,0.3983,2514.8,2514.1,0.987991]
[1646698892224,0.00392961,2514.4,2514.1,0.987991]
[1646698892425,0.00392961,2514.4,2514.1,1.389391]
[1646698893171,0.00119368,2515.2,2514.3,0.99454]
[1646698893368,1.13613066,2515.3,2514.3,0.99454]
[1646698893669,0.00520497,2514.4,2514.3,0.99454]
[1646698894468,0.02081674,2514.8,2514.3,0.99454]
[1646698894469,1.13032988,2514.9,2514.3,1.95382684]
[1646698894670,0.00520491,2514.5,2514.2,1.98908]
[1646698895474,0.00520491,2514.5,2513.9,1.98942]
[1646698895674,0.00520491,2514.5,2513.2,4.46939]
[1646698895675,0.90718172,2514.3,2513.2,3.97839]
[1646698896619,0.3,2514.4,2513.4,0.99501]
[1646698897120,0.00520522,2513.9,2513.4,0.99501]
[1646698897717,0.00520522,2513.9,2513.6,0.9947391]
[1646698897918,0.00520522,2513.9,2513.7,0.9947]
[1646698898119,2.2902,2514.6,2513.9,0.94534825]
[1646698898318,0.02024162,2514.3,2513.9,0.94534825]
[1646698898924,0.02024162,2514.3,2513.8,1.98954]
[1646698899319,0.02024162,2514.3,2513.1,0.03837341]
[1646698899523,0.00506123,2514.2,2513.1,0.03837341]
[1646698899721,0.00506123,2514.2,2512.6,1.00378423]
[1646698899924,0.02715666,2512.8,2512.6,1.00378423]
[1646698900178,0.02715666,2512.8,2512.7,0.99531]
[1646698900378,5.5,2512.7,2511.9,0.18859183]
[1646698900578,5.5,2512.7,2511.2,0.5]
[1646698900787,6.5,2512.7,2512.6,8.428e-05]
[1646698900972,6.5,2512.7,2511.2,0.5]
[1646698900973,5.5,2512.6,2511.2,0.5]
[1646698901177,0.9960061,2512.3,2510.8,1.99187]
[1646698901373,2.9880021,2512.4,2511.4,0.5]
[1646698901374,2.2920121,2512.4,2511.4,0.5]
[1646698901576,3.4830121,2512.4,2511.4,0.5]
[1646698901772,2.98804,2512.1,2511.4,0.5]
[1646698902173,1.10772683,2511.9,2511.4,0.5]
[1646698902373,2.10365683,2511.9,2511.4,0.5]
[1646698902672,2.40365683,2511.9,2511.4,0.5]
[1646698902873,2.40365683,2511.9,2511.2,0.97533681]
[1646698903075,0.99591,2511.7,2511.2,0.97533681]
[1646698903475,0.99589,2511.6,2511.2,0.97533681]
[1646698903676,1.10772683,2511.9,2511.2,0.97533681]
[1646698903920,1.99146,2512.3,2511.2,0.97533681]
[1646698904127,0.99568,2512.2,2511.2,4.77533681]
[1646698904322,1.1253,2512.4,2511.3,0.4014]
[1646698904520,1.1253,2512.4,2511.7,0.99562]
[1646698904521,2.12091,2512.4,2511.7,0.99562]
[1646698904721,2.12091,2512.4,2511.2,0.97533681]
[1646698904722,0.99561,2512.4,2511.2,0.97533681]
[1646698904921,0.99561,2512.4,2510.8,0.01244879]
[1646698905122,0.99561,2512.4,2510.4,0.08403267]
[1646698905123,0.99567,2512.2,2510.4,0.08403267]
[1646698905325,1.99199,2511.7,2510.5,0.995957]
[1646698905725,0.99596,2511.5,2510.9,0.99601]
[1646698905926,0.89932723,2511.4,2510.9,0.99601]
[1646698906326,0.99596,2511.5,2510.9,0.99601]
[1646698906731,0.99596,2511.5,2511.0,0.00425048]
[1646698907528,0.99596,2511.5,2511.1,0.99592]
[1646698907773,1.0,2512.0,2511.1,0.99592]
[1646698907774,0.1676,2512.3,2511.1,0.99592]
[1646698907974,1.2929,2512.4,2511.2,3.5]
[1646698908173,1.1253,2512.4,2511.2,3.5]
[1646698908573,1.1253,2512.4,2511.8,1.09078918]
[1646698908780,0.99565,2512.4,2511.8,1.09078918]
[1646698908976,0.19475666,2512.8,2511.8,1.09078918]
[1646698908977,1.99123,2512.7,2511.8,1.09078918]
[1646698909175,1.02266666,2512.8,2511.8,17.48218918]
[1646698909381,1.02266666,2512.8,2512.1,0.4014]
[1646698909382,0.02715666,2512.8,2512.1,0.4014]
[1646698909578,0.5654,2513.9,2512.6,0.4014]
[1646698909777,0.1676,2513.8,2512.8,0.99511]
[1646698909974,2.15799,2513.8,2512.9,3.5]
[1646698910175,2.15799,2513.8,2512.9,4.64311281]
[1646698910176,0.99390843,2513.6,2512.9,4.64311281]
[1646698910379,0.00470585,2513.5,2512.9,1.14311281]
[1646698911179,0.9952,2513.5,2512.7,1.99022]
[1646698911417,0.9952,2513.5,2512.9,0.99521]
[1646698911632,1.99509606,2513.5,2512.9,0.99521]
[1646698911819,0.99990606,2513.5,2512.9,0.99521]
[1646698912420,0.9952,2513.5,2512.9,0.99521]
[1646698912819,1.29990606,2513.5,2512.9,0.99521]
[1646698913021,0.99524,2513.4,2512.9,0.99521]
[1646698913420,1.29990606,2513.5,2512.9,0.99521]
[1646698913623,0.9952,2513.5,2512.9,0.99521]
[1646698913821,1.2952,2513.5,2512.9,0.99521]
[1646698914022,1.0004013,2513.5,2512.9,0.99521]
[1646698914225,0.0052013,2513.5,2512.9,0.99521]
[1646698914823,1.99026,2513.7,2512.9,0.99521]
[1646698915023,0.00520138,2513.5,2512.9,0.99521]
[1646698915474,0.00520138,2513.5,2513.2,1.18232572]
[1646698916075,0.99511,2513.7,2513.2,1.18232572]
[1646698916277,0.56799606,2513.6,2513.2,1.18232572]
[1646698916479,0.00520156,2513.5,2513.2,1.58372572]
[1646698916675,0.00520156,2513.5,2513.3,3.9014]
[1646698916875,0.00520156,2513.5,2513.3,5.89084]
[1646698917277,0.00520156,2513.5,2513.3,2.69084]
[1646698917476,0.00520156,2513.5,2513.3,2.39084]
[1646698917676,0.00520156,2513.5,2513.2,1.18232572]
[1646698917677,0.0052013,2513.5,2513.4,0.1989]
[1646698917875,0.0052013,2513.5,2513.1,0.99514]
[1646698918075,0.0052013,2513.5,2513.0,3.0]
[1646698918275,0.0052013,2513.5,2512.8,3.97892]
[1646698918576,1.99037,2513.7,2512.9,0.4014]
[1646698918776,0.0052013,2513.5,2513.3,1.14178736]
[1646698919020,0.0052013,2513.5,2513.3,3.13173736]
[1646698919622,3.4512599,2514.1,2513.3,3.13173736]
[1646698919927,0.0052013,2513.5,2513.4,0.99498]
[1646698920736,0.54327533,2513.5,2513.0,1.99017]
[1646698920927,1.53330403,2513.4,2512.5,0.01229432]
[1646698921129,0.93209849,2513.2,2512.6,1.00075366]
[1646698921329,0.99523,2513.4,2512.7,0.1989]
[1646698921528,0.53808048,2513.3,2512.7,1.19406]
[1646698921730,0.00520338,2513.6,2512.8,14.58175]
[1646698921928,0.00520338,2513.6,2512.9,0.1988]
[1646698922127,1.2405,2514.1,2513.0,1.396236]
[1646698922327,1.2405,2514.1,2513.5,1.10707693]
[1646698922328,0.53238815,2514.0,2513.5,1.10707693]
[1646698922531,0.55319525,2514.0,2513.6,0.99489]
[1646698922769,0.53238815,2513.9,2513.6,0.99489]
[1646698923673,0.53759137,2513.9,2513.6,0.99489]
[1646698923870,0.00520322,2513.9,2513.6,0.99489]
[1646698924273,0.00520322,2513.9,2513.6,2.3910745]
[1646698924471,0.00343292,2514.4,2513.9,0.93169874]
[1646698924873,0.01914704,2514.3,2513.9,0.93169874]
[1646698925077,0.01914704,2514.3,2513.5,0.1988]
[1646698925277,0.53623517,2514.2,2513.1,1.1937524]
[1646698925476,0.53623517,2514.1,2513.1,1.1937524]
[1646698925677,0.53623517,2514.0,2513.1,1.1937524]
[1646698925877,0.53623517,2513.9,2513.1,0.99058294]
[1646698926077,0.53623517,2513.8,2513.4,1.2091644]
[1646698926277,0.5360118,2513.7,2513.4,1.2091644]
[1646698926522,0.00478741,2514.0,2513.5,0.99499]
[1646698926725,0.53611316,2513.9,2513.5,0.99499]
[1646698926921,0.00343292,2514.4,2513.5,1.59519]
[1646698927321,0.00478757,2513.7,2513.5,1.59519]
[1646698927624,0.00478757,2513.7,2513.6,1.16469984]
[1646698927823,0.00478757,2513.7,2513.5,0.99499]
[1646698928524,0.00513462,2513.8,2513.5,0.99499]
[1646698928921,0.00513462,2513.8,2513.7,0.99488]
[1646698929324,1.85579641,2514.6,2513.7,1.39628]
[1646698929525,3.92469019,2514.9,2513.8,0.1988]
[1646698929526,0.53603083,2514.5,2513.8,0.1988]
[1646698929726,0.02053538,2514.2,2513.8,0.1988]
[1646698930583,0.02053538,2514.2,2514.0,0.4014]
[1646698930777,0.00393158,2514.1,2514.0,0.39922392]
[1646698930974,0.00393158,2514.1,2514.0,1.42199154]
[1646698931374,0.01572394,2514.5,2514.1,12.58922392]
[1646698931582,18.32029019,2515.2,2514.1,12.58922392]
[1646698931583,0.69849641,2515.2,2514.1,12.58922392]
[1646698931785,0.53580731,2515.1,2514.2,17.27330392]
[1646698931981,1.83899641,2515.6,2514.2,17.27330392]
[1646698931982,1.1405,2515.6,2514.2,17.27330392]
[1646698932177,0.50239448,2515.5,2515.2,1.1852278]
[1646698932377,0.70055161,2515.9,2515.3,0.44100245]
[1646698932577,0.0020552,2515.9,2515.5,12.58922392]
[1646698932782,5.52e-05,2515.9,2515.6,17.07396392]
[1646698932976,5.52e-05,2515.9,2515.8,12.58922392]
[1646698933177,0.011383,2516.7,2516.0,12.58922392]
[1646698933375,0.011383,2516.7,2516.4,1.16373749]
[1646698933575,0.011383,2516.7,2516.5,0.39922392]
[1646698934024,0.011383,2516.7,2516.5,13.58277392]
[1646698934225,0.009039,2517.2,2516.7,12.58922392]
[1646698934426,0.017805,2517.2,2516.8,0.491]
[1646698934626,0.017805,2517.2,2517.0,1.09404238]
[1646698934830,0.017805,2517.2,2516.8,0.491]
[1646698935032,0.017805,2517.2,2517.0,1.98683]
[1646698935230,0.017805,2517.2,2517.0,0.3810941]
[1646698935632,0.00392772,2517.1,2517.0,0.3810941]
[1646698936532,0.02024804,2517.2,2517.0,0.3810941]
[1646698936732,0.02417576,2517.2,2517.0,0.3810941]
[1646698936933,0.02417576,2517.2,2517.0,1.3744683]
[1646698937133,0.02417576,2517.2,2517.0,0.3810941]
[1646698937332,0.02417576,2517.2,2517.1,0.9934]
[1646698937533,0.02417576,2517.2,2516.7,1.98711]
[1646698937775,0.02024804,2517.2,2516.7,1.98711]
[1646698938175,0.02417576,2517.2,2516.7,1.98711]
[1646698938572,0.02417576,2517.2,2516.5,1.98726]
[1646698938774,0.02417576,2517.2,2516.5,3.04009055]
[1646698939171,0.02024804,2517.2,2516.5,3.04009055]
[1646698939471,0.00520679,2517.1,2516.5,3.04009055]
[1646698939874,0.00520679,2517.1,2516.5,1.31160373]
[1646698940073,0.88246339,2517.0,2516.5,0.25877318]
[1646698940279,0.00489169,2516.9,2516.5,0.25877318]
[1646698941079,1.01742186,2516.6,2516.5,0.25877318]
[1646698941280,1.01742186,2516.6,2516.0,1.98766]
[1646698941533,1.01742186,2516.6,2515.8,0.99403]
[1646698942625,0.97525046,2516.2,2515.8,0.99403]
[1646698943128,0.97525046,2516.2,2515.6,1.19271]
[1646698943327,0.97525046,2516.2,2515.3,0.04177853]
[1646698943926,0.90381663,2515.4,2514.8,1.08314033]
[1646698944427,0.90381663,2515.4,2515.1,1.9884]
[1646698945276,0.90902218,2515.4,2514.8,0.20064564]
[1646698945682,0.86760975,2515.0,2514.8,0.20064564]
[1646698946081,0.86760975,2515.0,2514.6,1.98883]
[1646698946276,0.86760975,2515.0,2514.0,5.2715203]
[1646698946475,0.87281547,2515.0,2514.0,4.9715203]
[1646698946676,0.00520572,2515.0,2514.4,1.98898]
[1646698946876,0.00520572,2515.0,2514.5,3.5]
[1646698947274,0.02081977,2515.4,2514.4,4.9718804]
[1646698947479,6.0265,2515.7,2514.2,3.98281]
[1646698947679,0.0052058,2514.9,2514.2,3.98281]
[1646698947877,0.0052058,2514.9,2514.5,0.99454]
[1646698948077,0.0052058,2514.9,2514.5,0.94454]
[1646698948676,1.1086402,2515.2,2514.5,0.94454]
[1646698948927,1.1086402,2515.2,2514.7,1.98851]
[1646698948928,0.00520583,2514.8,2514.7,1.98851]
[1646698949128,0.00520583,2514.8,2514.7,5.48851]
[1646698949324,0.00520583,2514.8,2514.7,14.87991]
[1646698949524,0.00520583,2514.8,2514.7,15.87991]
[1646698950126,0.92787662,2515.8,2514.7,15.87991]
[1646698950330,0.02082009,2515.3,2515.0,0.3]
[1646698950531,0.02082009,2515.3,2515.1,0.92099719]
[1646698951231,0.0046133,2515.3,2515.1,0.92099719]
[1646698952030,0.0046133,2515.3,2514.9,1.98844]
[1646698952231,0.92787662,2515.8,2514.7,1.9887]
[1646698952431,0.0046133,2515.3,2514.7,1.9887]
[1646698953272,1.21527161,2515.3,2514.7,1.9887]
[1646698953475,1.21065831,2515.3,2514.7,1.9887]
[1646698953673,0.00461338,2515.1,2514.7,1.9887]
[1646698954673,1.3575,2516.2,2514.7,2.2887]
[1646698954674,1.1899,2516.2,2514.7,2.2887]
[1646698954874,2.41629722,2516.0,2515.0,12.19]
[1646698955075,0.02082048,2515.4,2515.1,3.5]
[1646698955278,0.02082048,2515.4,2515.1,15.69]
[1646698955479,0.02082048,2515.4,2515.2,12.5914]
[1646698955778,0.001025,2516.1,2515.2,15.87965]
[1646698955984,0.001025,2516.3,2515.3,15.69]
[1646698956180,0.00520572,2515.4,2515.3,0.99395]
[1646698957022,0.001025,2516.1,2515.3,0.99395]
[1646698957223,1.0552644,2515.6,2515.3,0.99395]
[1646698957423,0.00520567,2515.5,2515.3,0.99395]
[1646698957622,0.00520567,2515.5,2514.9,1.98863]
[1646698958222,1.0552644,2515.6,2514.9,1.98863]
[1646698958627,0.00520557,2515.3,2514.9,1.98863]
[1646698959024,0.00520557,2515.3,2515.1,0.99433]
[1646698959224,0.00520557,2515.3,2515.1,2.12666188]
[1646698959425,0.00343292,2516.0,2515.1,0.99433]
[1646698959828,0.00520557,2515.3,2515.1,0.99433]
[1646698960025,0.00520557,2515.3,2514.9,1.37374382]
[1646698960483,1.12572814,2515.2,2514.9,1.37374382]
[1646698960683,2.12022814,2515.2,2514.6,1.98882]
[1646698961083,2.12543376,2515.2,2514.6,1.98882]
[1646698962183,0.00520783,2515.0,2514.6,1.98882]
[1646698963188,0.99455,2515.0,2513.7,1.9892124]
[1646698963383,3.9059419,2514.9,2514.0,0.99476]
[1646698963583,0.40073402,2514.8,2514.0,0.99476]
[1646698963788,0.93416575,2514.3,2514.0,0.99476]
[1646698964528,0.93937396,2514.3,2514.0,0.99476]
[1646698965631,0.93416575,2514.3,2514.0,0.99476]
[1646698965832,0.93904319,2514.3,2514.0,0.99476]
[1646698966636,3.5,2514.2,2513.0,0.22356804]
[1646698966837,0.40056596,2514.1,2513.0,0.22356804]
[1646698967037,0.40056596,2514.0,2513.0,0.22741493]
[1646698967340,0.40079661,2513.9,2513.0,0.22741493]
[1646698967534,5.43904319,2514.3,2513.0,0.22741493]
[1646698967781,1.92788473,2513.6,2513.0,1.45727072]
[1646698967979,1.92788473,2513.6,2513.1,1.99003]
[1646698968380,0.99512,2513.7,2513.0,0.22741493]
[1646698968780,0.99512,2513.6,2513.0,0.22741493]
[1646698969179,0.99519,2513.4,2513.0,0.22356804]
[1646698969379,0.99519,2513.4,2513.0,0.22711493]
[1646698969581,0.99519,2513.4,2513.0,1.22228493]
[1646698970081,3.01042498,2514.2,2513.0,1.62368493]
[1646698970288,0.02494498,2514.2,2513.1,0.4014]
[1646698970486,0.02494498,2514.2,2513.4,0.99487]
[1646698970687,0.02494382,2514.2,2513.4,0.99487]
[1646698970886,0.98380688,2514.0,2513.4,0.99487]
[1646698972026,1.99042,2513.8,2513.0,0.00354689]
[1646698972243,1.20100177,2513.3,2513.0,0.00354689]
[1646698972825,5.490636,2513.9,2512.7,0.1989]
[1646698973026,1.990636,2513.9,2513.0,0.00358408]
[1646698973226,0.99533,2513.3,2513.0,0.00358408]
[1646698973527,6.43941,2514.0,2513.0,0.00358408]
[1646698973528,0.4676,2514.0,2513.0,0.00358408]
[1646698973727,11.6682614,2514.5,2513.0,0.00358408]
[1646698973926,0.40084175,2514.1,2513.2,0.93755771]
[1646698974131,7.7256,2514.6,2513.2,13.52895771]
[1646698974328,0.02499917,2514.2,2513.4,12.5914]
[1646698974527,0.02499917,2514.2,2513.9,12.5914]
[1646698974832,0.02499917,2514.2,2513.9,14.0824]
[1646698975029,2.3976,2515.3,2514.3,12.5914]
[1646698975283,0.1676,2515.5,2514.5,12.5914]
[1646698975482,2.14e-06,2514.6,2514.5,15.5914]
[1646698975682,0.1676,2516.1,2514.9,12.5914]
[1646698975881,0.001025,2516.5,2515.2,12.5914]
[1646698975882,0.168625,2516.5,2515.2,12.5914]
[1646698976082,0.168625,2516.5,2516.2,1.11203641]
[1646698976083,0.1676,2516.5,2516.2,1.11203641]
[1646698976290,3.008766,2516.7,2516.3,4.0]
[1646698976486,3.008766,2516.7,2516.2,14.99696091]
[1646698976784,0.008766,2516.7,2516.3,0.99369]
[1646698976983,0.008766,2516.7,2516.2,3.09940641]
[1646698977680,0.008766,2516.7,2516.2,3.39940641]
[1646698977880,0.008766,2516.7,2516.3,0.99352]
[1646698978281,0.008766,2516.7,2516.3,13.18352]
[1646698978483,0.008766,2516.7,2516.4,3.6986]
[1646698978933,0.008766,2516.7,2516.6,12.5914]
[1646698979135,0.008766,2516.7,2516.6,13.581]
[1646698979337,0.008766,2516.7,2516.6,14.581]
[1646698979737,0.008766,2516.7,2516.6,3.09139626]
[1646698979938,0.008766,2516.7,2516.6,0.56163756]
[1646698980136,0.008766,2516.7,2516.6,1.55504756]
[1646698980343,0.008766,2516.7,2516.6,1.19201]
[1646698980539,0.008766,2516.7,2516.6,0.1986]
[1646698980940,0.008766,2516.7,2516.5,1.9869]
[1646698981346,0.008766,2516.7,2516.5,2.2869]
[1646698981541,0.008766,2516.7,2516.5,2.4855]
[1646698981743,0.008766,2516.7,2516.4,0.04402984]
[1646698982343,0.008766,2516.7,2516.5,0.987249]
[1646698982545,0.01266344,2516.7,2516.1,1.98759]
[1646698983593,0.008766,2516.7,2516.1,1.98759]
[1646698983893,0.00521165,2516.5,2516.1,1.98759]
[1646698984693,0.008766,2516.7,2516.1,1.98759]
[1646698985092,0.0052117,2516.4,2516.3,1.19488302]
[1646698985896,0.008766,2516.7,2516.1,1.98759]
[1646698986098,0.99399,2516.6,2515.9,1.98774]
[1646698986297,0.00521167,2516.5,2515.9,1.98774]
[1646698986926,0.00521167,2516.5,2516.1,1.21253655]
[1646698987130,0.99399,2516.6,2516.1,1.21253655]
[1646698987326,0.99399,2516.6,2516.1,2.20644655]
[1646698987526,0.00521175,2516.3,2515.9,1.98774]
[1646698988326,0.99399,2516.6,2515.9,1.98774]
[1646698988725,0.00506342,2516.2,2516.0,1.03687506]
[1646698989527,0.99401,2516.4,2516.0,1.03687506]
[1646698989830,0.99401,2516.4,2515.9,1.98774]
[1646698989831,0.00506342,2516.2,2515.9,1.98774]
[1646698990487,0.99915342,2516.2,2515.7,1.98791]
[1646698990686,0.99409,2516.2,2515.8,1.1811987]
[1646698991086,0.3,2516.3,2515.8,1.1811987]
[1646698991283,0.00506344,2516.2,2515.8,1.1811987]
[1646698991889,4.27639,2516.5,2515.8,1.1811987]
[1646698992192,0.00499946,2516.1,2515.0,0.3984]
[1646698992398,1.9889,2515.9,2514.8,0.18583704]
[1646698992588,1.9889,2515.9,2514.8,1.18027704]
[1646698992790,0.00499946,2516.1,2514.8,1.18027704]
[1646698992791,0.00499946,2516.1,2514.9,3.5]
[1646698992989,0.00499946,2516.1,2514.9,3.9014]
[1646698993189,0.99408,2516.2,2514.9,3.9014]
[1646698993389,0.99408,2516.2,2515.1,1.98823]
[1646698993595,0.00499975,2515.5,2515.1,1.98823]
[1646698994030,0.00499975,2515.5,2515.0,0.99437]
[1646698994429,0.94236881,2515.6,2515.0,0.99437]
[1646698994630,0.00499977,2515.4,2515.0,0.99437]
[1646698995234,0.00499977,2515.4,2514.8,1.98864]
[1646698995443,0.00499977,2515.4,2514.4,0.00369131]
[1646698995639,0.00499977,2515.4,2514.0,4.47703]
[1646698995640,1.29437,2515.5,2514.0,0.5]
[1646698995837,0.00479857,2515.3,2514.4,0.00368892]
[1646698996037,1.32124265,2515.2,2514.4,0.00368892]
[1646698996236,0.9453464,2514.7,2514.4,0.00368892]
[1646698996437,0.9948,2514.6,2514.4,0.00368892]
[1646698996737,0.9948,2514.6,2513.7,1.98953]
[1646698996937,0.9948,2514.6,2513.9,0.99475]
[1646698997135,0.9948,2514.6,2514.4,0.00368892]
[1646698997543,0.9948,2514.6,2514.4,8.892e-05]
[1646698997544,2.98445,2514.6,2514.4,8.892e-05]
[1646698997786,6.7656489,2514.6,2514.4,8.892e-05]
[1646698997983,1.99022,2514.2,2513.1,1.26976052]
[1646698998184,0.99511,2514.2,2512.8,1.0]
[1646698998382,0.99511,2514.2,2512.9,1.26981327]
[1646698998583,0.86451384,2513.5,2512.9,1.26981327]
[1646698998802,0.86451384,2513.5,2512.6,1.4953]
[1646698998987,0.99524,2513.3,2512.4,3.97951]
[1646698999183,0.99524,2513.3,2512.5,1.26993653]
[1646698999586,0.99524,2513.3,2513.1,0.00369123]
[1646698999786,0.3,2513.3,2513.1,0.00369123]
[1646698999986,0.00343292,2513.6,2513.4,0.65424961]
[1646699000592,1.08954659,2513.6,2513.4,0.65424961]
[1646699000791,3.99638394,2514.2,2513.4,0.65424961]
[1646699000990,0.33174499,2514.1,2513.4,0.65424961]
[1646699001190,3.31740499,2514.1,2513.4,0.65424961]
[1646699001427,0.33174499,2514.0,2513.4,0.65424961]
[1646699001829,1.01798298,2513.7,2513.6,0.00369042]
[1646699002127,2.01306298,2513.7,2513.6,0.00369042]
[1646699002733,2.01306298,2513.7,2513.4,0.65424961]
[1646699003131,4.00343298,2513.7,2513.5,0.00368158]
[1646699003331,3.28545,2513.7,2513.5,0.00368158]
[1646699003932,1.29508,2513.7,2513.4,0.65424961]